bitfinex/quotes_BTCUSD_20250723
["timestamp","ask_amount","ask_price","bid_price","bid_amount"]
[1753292827176,0.2429616,118050.0,118040.0,0.35619059]
[1753292827438,0.2429616,118050.0,118040.0,0.21127918]
[1753292827675,0.06507146,118050.0,118040.0,0.18637713]
[1753292827890,0.24560928,118050.0,118040.0,0.18637713]
[1753292828110,0.2515019,118050.0,118040.0,0.18637713]
[1753292828518,0.17790579,118040.0,118030.0,0.24554818]
[1753292828762,0.22673579,118040.0,118030.0,0.39889273]
[1753292828980,0.0084722,118030.0,118020.0,0.19488077]
[1753292829232,0.02166196,118030.0,118020.0,0.32280828]
[1753292829467,0.20264267,118030.0,118020.0,0.32280871]
[1753292829696,0.03901851,118030.0,118020.0,0.33975404]
[1753292829919,0.04166622,118030.0,118020.0,0.20347911]
[1753292830159,0.21111466,118030.0,118020.0,0.20347911]
[1753292830383,0.21111466,118030.0,118020.0,0.33987911]
[1753292830385,0.20846703,118030.0,118020.0,0.33987911]
[1753292830568,0.06001859,118030.0,118020.0,0.33987911]
[1753292830830,0.27420589,118030.0,118020.0,0.00012507]
[1753292831051,0.23282299,118030.0,118020.0,0.00012507]
[1753292831956,0.23282299,118030.0,118020.0,0.19500678]
[1753292832205,0.06337455,118030.0,118020.0,0.21195219]
[1753292832409,0.06602218,118030.0,118020.0,0.21195219]
[1753292832819,0.07449409,118030.0,118020.0,0.21195219]
[1753292833062,0.04907763,118030.0,118020.0,0.21195219]
[1753292833294,0.15000177,118030.0,118020.0,0.56883298]
[1753292833736,0.01360177,118030.0,118020.0,0.56983298]
[1753292834194,0.00513,118030.0,118020.0,0.56983298]
[1753292835623,0.01360191,118030.0,118020.0,0.70619298]
[1753292835829,0.01624954,118030.0,118020.0,0.70619298]
[1753292836033,0.00777763,118030.0,118020.0,0.70619298]
[1753292836491,0.00513,118030.0,118020.0,0.70619298]
[1753292836696,0.00777763,118030.0,118020.0,0.70619298]
[1753292836899,0.0026474,118040.0,118030.0,0.19486483]
[1753292837059,0.0026474,118040.0,118030.0,0.19690483]
[1753292837060,0.0047174,118040.0,118030.0,0.19690483]
[1753292837237,0.00207,118040.0,118030.0,0.19690483]
[1753292837446,0.00513,118040.0,118030.0,0.55378562]
[1753292837865,0.00513,118040.0,118030.0,0.59678562]
[1753292838449,0.00207,118040.0,118030.0,0.59778562]
[1753292838652,0.0104103,118040.0,118030.0,0.59778562]
[1753292838854,0.00207,118040.0,118030.0,0.59778562]
[1753292839499,0.00570718,118050.0,118040.0,0.19484833]
[1753292839704,0.00777718,118050.0,118040.0,0.68804912]
[1753292839912,0.00513,118050.0,118040.0,0.68804912]
[1753292840117,0.01624759,118050.0,118040.0,0.68804912]
[1753292840329,0.02204832,118050.0,118040.0,0.68804912]
[1753292840745,0.0256955,118050.0,118040.0,0.68804912]
[1753292840944,0.03416598,118050.0,118040.0,0.68804912]
[1753292841150,0.03416591,118050.0,118040.0,0.68804912]
[1753292841346,0.01457798,118050.0,118040.0,0.68804912]
[1753292841559,0.001,118050.0,118040.0,0.73438912]
[1753292841765,0.001,118050.0,118040.0,0.37750833]
[1753292841970,0.00307,118050.0,118040.0,0.73438912]
[1753292842977,0.00307,118050.0,118040.0,0.37850833]
[1753292843180,0.00307,118050.0,118040.0,0.73538912]
[1753292843609,0.00513,118050.0,118040.0,0.73538912]
[1753292844001,0.00513,118050.0,118040.0,0.73738912]
[1753292844575,0.02215026,118050.0,118040.0,0.73738912]
[1753292844776,0.03062074,118050.0,118040.0,0.73738912]
[1753292844974,0.26448477,118050.0,118040.0,0.003]
[1753292845191,0.25601415,118050.0,118040.0,0.003]
[1753292845412,0.39229415,118050.0,118040.0,0.003]
[1753292845601,0.47677145,118050.0,118040.0,0.003]
[1753292846423,0.47677145,118050.0,118040.0,0.001]
[1753292846623,0.16943409,118040.0,118030.0,0.33113721]
[1753292846839,0.18303579,118040.0,118030.0,0.32266522]
[1753292847053,0.00513,118040.0,118030.0,0.33113713]
[1753292847256,0.0247198,118040.0,118030.0,0.33113713]
[1753292847483,0.03319128,118040.0,118030.0,0.33113713]
[1753292847693,0.0247198,118040.0,118030.0,0.33213713]
[1753292847908,0.03319114,118040.0,118030.0,0.33213713]
[1753292848106,0.0247198,118040.0,118030.0,0.33213713]
[1753292848510,0.01624853,118040.0,118030.0,0.33213713]
[1753292848749,0.02471973,118040.0,118030.0,0.33213713]
[1753292848983,0.01624853,118040.0,118030.0,0.33213713]
[1753292849099,0.0077774,118040.0,118030.0,0.33213713]
[1753292849320,0.01624845,118040.0,118030.0,0.33213713]
[1753292849749,0.00513,118040.0,118030.0,0.33213713]
[1753292849962,0.0077774,118040.0,118030.0,0.33213713]
[1753292850370,0.00207,118040.0,118030.0,0.71175792]
[1753292850790,0.0047174,118040.0,118030.0,0.73295792]
[1753292851170,0.00207,118040.0,118030.0,0.73295792]
[1753292851389,0.0047174,118040.0,118030.0,0.37607713]
[1753292851598,0.0047174,118040.0,118030.0,0.73295792]
[1753292852008,0.0077774,118040.0,118030.0,0.73295792]
[1753292853955,0.20262552,118040.0,118030.0,0.33213713]
[1753292854176,0.44956107,118040.0,118030.0,0.001]
[1753292854631,0.68403837,118040.0,118030.0,0.001]
[1753292854858,0.70148739,118040.0,118030.0,0.001]
[1753292855083,1.05836818,118040.0,118030.0,0.001]
[1753292855323,0.48553367,118040.0,118030.0,0.001]
[1753292855555,0.62173367,118040.0,118030.0,0.001]
[1753292856191,0.62273367,118040.0,118030.0,0.001]
[1753292857513,0.62273367,118040.0,118020.0,0.00012507]
[1753292857514,0.22042071,118030.0,118020.0,0.00012507]
[1753292857756,0.31538021,118030.0,118020.0,0.00012507]
[1753292858027,0.31842021,118030.0,118020.0,0.00012507]
[1753292859307,0.31942021,118030.0,118020.0,0.00012507]
[1753292859512,0.31942021,118030.0,118020.0,0.17806093]
[1753292859934,0.40389751,118030.0,118020.0,0.17806101]
[1753292860365,0.31942021,118030.0,118020.0,0.18653407]
[1753292860579,0.31942021,118030.0,118020.0,0.17806101]
[1753292860794,0.31942021,118030.0,118020.0,0.18653407]
[1753292861008,0.31942021,118030.0,118020.0,0.19500706]
[1753292861237,0.31942021,118030.0,118020.0,0.18653407]
[1753292861464,0.31942021,118030.0,118020.0,0.19500706]
[1753292861713,0.40389751,118030.0,118020.0,0.19500699]
[1753292861916,0.31942021,118030.0,118020.0,0.20347984]
[1753292862125,0.1330273,118030.0,118020.0,0.20347948]
[1753292862339,0.30572316,118030.0,118020.0,0.21195175]
[1753292862550,0.31154788,118030.0,118020.0,0.20347912]
[1753292862769,0.1330273,118030.0,118020.0,0.21195175]
[1753292863001,0.11011861,118030.0,118020.0,0.21195175]
[1753292863214,0.24627861,118030.0,118020.0,0.21195175]
[1753292863430,0.25210297,118030.0,118020.0,0.21195175]
[1753292864081,0.24363098,118030.0,118020.0,0.21195175]
[1753292864297,0.23515907,118030.0,118020.0,0.21195175]
[1753292864534,0.24363106,118030.0,118020.0,0.21195175]
[1753292865185,0.23515907,118030.0,118020.0,0.21195175]
[1753292865411,0.00301,118030.0,118020.0,0.61563254]
[1753292865664,0.13712,118030.0,118020.0,0.68326008]
[1753292865884,0.13976763,118030.0,118020.0,0.68326008]
[1753292866116,0.15872153,118030.0,118020.0,0.61563254]
[1753292866347,0.14481763,118030.0,118020.0,0.61363254]
[1753292866555,0.14381763,118030.0,118020.0,0.25675175]
[1753292866769,0.16076146,118030.0,118020.0,0.25675175]
[1753292867244,0.15228947,118030.0,118020.0,0.25675175]
[1753292867475,0.14381763,118030.0,118020.0,0.25675175]
[1753292867924,0.14381763,118030.0,118020.0,0.25775175]
[1753292868145,0.13612,118030.0,118020.0,0.61663254]
[1753292869029,0.65907345,118040.0,118030.0,0.19486483]
[1753292869252,0.63567,118040.0,118030.0,0.59704562]
[1753292869476,0.14117,118040.0,118030.0,0.59704562]
[1753292869714,0.1438174,118040.0,118030.0,0.59704562]
[1753292869927,0.02549067,118050.0,118040.0,0.19484833]
[1753292870150,0.14663992,118050.0,118040.0,0.19484833]
[1753292870369,0.00854992,118050.0,118040.0,0.59822912]
[1753292870848,0.13608,118060.0,118050.0,0.19483181]
[1753292871071,0.00505,118060.0,118050.0,0.5517126]
[1753292871298,0.00505,118060.0,118050.0,0.5982126]
[1753292871299,0.14113,118060.0,118050.0,0.5982126]
[1753292871516,0.14655976,118060.0,118050.0,0.24133181]
[1753292871731,0.15520489,118060.0,118050.0,0.24133181]
[1753292871934,0.15824489,118060.0,118050.0,0.24133181]
[1753292872151,0.16089184,118060.0,118050.0,0.24133181]
[1753292872369,0.01634208,118060.0,118050.0,0.24133181]
[1753292872591,0.14673513,118060.0,118050.0,0.24133181]
[1753292872812,0.01129208,118060.0,118050.0,0.5982126]
[1753292873462,0.01229208,118060.0,118050.0,0.5982126]
[1753292873677,0.03670411,118060.0,118050.0,0.37737181]
[1753292873905,0.03328175,118060.0,118050.0,0.37737181]
[1753292874119,0.01634208,118060.0,118050.0,0.37737181]
[1753292874338,0.01634208,118060.0,118050.0,0.37837181]
[1753292874792,0.01330208,118060.0,118050.0,0.7352526]
[1753292874999,0.0302416,118060.0,118050.0,0.37837181]
[1753292875212,0.02177177,118060.0,118050.0,0.37837181]
[1753292875624,0.01330208,118060.0,118050.0,0.37837181]
[1753292875834,0.02177177,118060.0,118050.0,0.37837181]
[1753292876069,0.0217717,118060.0,118050.0,0.37837181]
[1753292876286,0.0387113,118060.0,118050.0,0.37837181]
[1753292876507,0.0417513,118060.0,118050.0,0.37837181]
[1753292876723,0.03063444,118060.0,118050.0,0.21823181]
[1753292876970,0.05022142,118060.0,118050.0,0.33187181]
[1753292877193,0.0417513,118060.0,118050.0,0.33187181]
[1753292877403,0.0417513,118060.0,118050.0,0.69745348]
[1753292877827,0.05022135,118060.0,118050.0,0.69745348]
[1753292877982,0.0417513,118060.0,118050.0,0.69745348]
[1753292878314,0.05022135,118060.0,118050.0,0.69745348]
[1753292878727,0.05022135,118060.0,118050.0,0.56141348]
[1753292878939,0.20268763,118060.0,118050.0,0.36658167]
[1753292879155,0.27645697,118060.0,118050.0,0.36658167]
[1753292879804,0.27645697,118060.0,118050.0,0.001]
[1753292880184,0.20004068,118060.0,118050.0,0.001]
[1753292880400,0.60004068,118060.0,118050.0,0.001]
[1753292881051,0.64304068,118060.0,118050.0,0.001]
[1753292881277,1.60504867,118060.0,118050.0,0.001]
[1753292881496,0.839467,118060.0,118050.0,0.001]
[1753292881717,0.9239443,118060.0,118050.0,0.001]
[1753292881940,0.32789057,118050.0,118040.0,0.36558167]
[1753292882223,0.41741787,118050.0,118040.0,0.36558167]
[1753292882474,0.16943409,118040.0,118030.0,0.18639288]
[1753292882716,0.31891572,118040.0,118030.0,0.60274668]
[1753292883135,0.32738699,118040.0,118030.0,0.61121874]
[1753292883385,0.32738699,118040.0,118030.0,0.36558167]
[1753292883386,0.35252269,118040.0,118030.0,0.36558167]
[1753292883645,0.31891572,118040.0,118030.0,0.36558167]
[1753292884304,0.31891572,118040.0,118030.0,0.36658167]
[1753292884538,0.31891572,118040.0,118030.0,0.17044844]
[1753292884747,0.31891572,118040.0,118030.0,0.54450246]
[1753292884964,0.31891572,118040.0,118030.0,0.55297473]
[1753292885174,0.14948141,118040.0,118030.0,0.57839097]
[1753292885345,0.15212881,118040.0,118030.0,0.57839097]
[1753292885571,0.16907164,118040.0,118030.0,0.57739097]
[1753292885772,0.33850609,118040.0,118030.0,0.53503011]
[1753292885939,0.39671854,118040.0,118030.0,0.55297466]
[1753292886137,0.32738728,118040.0,118030.0,0.56144665]
[1753292886376,0.33585898,118040.0,118030.0,0.56144665]
[1753292886759,0.33585898,118040.0,118030.0,0.56144679]
[1753292886966,0.33585898,118040.0,118030.0,0.56991885]
[1753292887136,0.33585898,118040.0,118030.0,0.57839076]
[1753292887327,0.15795319,118040.0,118030.0,0.57839076]
[1753292887525,0.16060059,118040.0,118030.0,0.60069076]
[1753292887936,0.33850638,118040.0,118030.0,0.60069076]
[1753292888137,0.33585898,118040.0,118030.0,0.59221885]
[1753292888365,0.33585898,118040.0,118030.0,0.60069084]
[1753292888879,0.15795247,118040.0,118030.0,0.6006904]
[1753292889101,0.16907135,118040.0,118030.0,0.6230904]
[1753292889834,0.17754291,118040.0,118030.0,0.25750873]
[1753292890038,0.17489551,118040.0,118030.0,0.6230904]
[1753292890907,0.18336721,118040.0,118030.0,0.6230904]
[1753292891131,0.3528013,118040.0,118030.0,0.5783904]
[1753292891783,0.33585883,118040.0,118030.0,0.55297473]
[1753292891986,0.33577883,118040.0,118030.0,0.56991877]
[1753292892299,0.33577883,118040.0,118030.0,0.56144686]
[1753292892505,0.33577883,118040.0,118030.0,0.55297473]
[1753292892708,0.33577883,118040.0,118030.0,0.56144686]
[1753292892917,0.33577883,118040.0,118030.0,0.56991892]
[1753292893132,0.03046474,118040.0,118030.0,0.57839083]
[1753292893341,0.32991453,118040.0,118030.0,0.57839083]
[1753292893544,0.02199283,118040.0,118030.0,0.59959083]
[1753292893760,0.1774232,118040.0,118030.0,0.59959083]
[1753292893977,0.17477522,118040.0,118030.0,0.59959083]
[1753292895024,0.35268094,118040.0,118030.0,0.59959083]
[1753292895374,0.18324685,118040.0,118030.0,0.59959083]
[1753292897322,0.03893522,118040.0,118030.0,0.59959083]
[1753292897529,0.34685671,118040.0,118030.0,0.59959091]
[1753292897750,0.34420931,118040.0,118030.0,0.59959091]
[1753292897959,0.34420931,118040.0,118030.0,0.58264686]
[1753292898172,0.32726699,118040.0,118030.0,0.17044844]
[1753292898381,0.32726699,118040.0,118030.0,0.001]
[1753292898382,0.42557295,118040.0,118030.0,0.001]
[1753292898594,0.44647295,118040.0,118030.0,0.001]
[1753292899479,0.46392197,118040.0,118030.0,0.001]
[1753292899933,0.82950364,118040.0,118030.0,0.001]
[1753292900157,1.30398094,118040.0,118030.0,0.001]
[1753292900375,1.33340483,118040.0,118030.0,0.001]
[1753292900620,1.30398094,118040.0,118030.0,0.001]
[1753292901111,0.64536973,118030.0,118020.0,0.00012507]
[1753292901340,1.1437887,118030.0,118020.0,0.00012507]
[1753292901568,1.228266,118030.0,118020.0,0.00012507]
[1753292903604,1.618266,118030.0,118020.0,0.00012507]
[1753292905396,1.25268433,118030.0,118020.0,0.00012507]
[1753292905614,1.618266,118030.0,118020.0,0.00012507]
[1753292906268,1.619266,118030.0,118020.0,0.00012507]
[1753292906512,1.618266,118030.0,118020.0,0.00012507]
[1753292906737,1.622266,118030.0,118020.0,0.00012507]
[1753292908656,0.65387338,118010.0,118000.0,0.06762754]
[1753292908911,0.48645597,117990.0,117980.0,0.06762754]
[1753292909129,0.87620229,117990.0,117980.0,0.06811966]
[1753292909341,0.87926229,117990.0,117980.0,0.06811966]
[1753292909563,0.92176229,117990.0,117980.0,0.06811966]
[1753292909787,1.00623957,117990.0,117980.0,0.06811966]
[1753292910008,0.87926229,117990.0,117980.0,0.06811966]
[1753292910219,0.87926229,117990.0,117980.0,0.00049212]
[1753292910665,0.88026229,117990.0,117980.0,0.06811966]
[1753292911557,0.88026229,117990.0,117980.0,0.00049212]
[1753292911766,0.96473959,117990.0,117980.0,0.00049212]
[1753292912395,1.00813959,117990.0,117980.0,0.00149212]
[1753292912609,0.98573959,117990.0,117980.0,0.00149212]
[1753292912824,0.96473959,117990.0,117980.0,0.00149212]
[1753292914122,0.96473959,117990.0,117980.0,0.36707379]
[1753292915061,0.96473959,117990.0,117980.0,0.00149212]
[1753292917384,0.97320087,117990.0,117980.0,0.00149212]
[1753292918027,1.43048254,117990.0,117980.0,0.00149212]
[1753292919506,1.77048254,117990.0,117980.0,0.00149212]
[1753292920345,1.40490087,117990.0,117980.0,0.00149212]
[1753292922110,1.77048254,117990.0,117980.0,0.00149212]
[1753292922553,1.21918087,117990.0,117980.0,0.00149212]
[1753292922754,1.31308087,117990.0,117980.0,0.02279212]
[1753292923192,1.31308087,117990.0,117980.0,0.00149212]
[1753292923613,1.17748087,117990.0,117980.0,0.00149212]
[1753292923851,0.91115455,117990.0,117980.0,0.48022133]
[1753292924066,0.56599455,117990.0,117980.0,0.48022133]
[1753292924287,0.56599455,117990.0,117980.0,0.65821752]
[1753292924504,0.33153119,117990.0,117980.0,0.67516889]
[1753292924720,0.33153155,117990.0,117980.0,0.48312133]
[1753292924936,0.3230564,117990.0,117980.0,0.48022133]
[1753292925360,0.3280664,117990.0,117980.0,0.04701212]
[1753292925593,0.7795478,117990.0,117980.0,0.00149212]
[1753292926928,0.9295478,117990.0,117980.0,0.00149212]
[1753292928690,0.87999272,117990.0,117980.0,0.00149212]
[1753292931914,0.44439272,117990.0,117980.0,0.41289379]
[1753292932130,0.57696272,117990.0,117980.0,0.41289379]
[1753292932973,0.57995272,117990.0,117980.0,0.41289379]
[1753292933204,0.57696272,117990.0,117980.0,0.41289379]
[1753292933398,0.59916449,117990.0,117980.0,0.41289379]
[1753292933776,0.42965547,117990.0,117980.0,0.59088998]
[1753292934235,0.42965547,117990.0,117980.0,0.59269345]
[1753292934427,0.42965547,117990.0,117980.0,0.58979345]
[1753292935051,0.42118025,117990.0,117980.0,0.41179726]
[1753292935973,0.42118025,117990.0,117980.0,0.58131751]
[1753292936467,0.42118025,117990.0,117980.0,0.41179726]
[1753292936691,0.41270496,117990.0,117980.0,0.41179726]
[1753292937154,0.41771496,117990.0,117980.0,0.41179726]
[1753292938572,0.41270496,117990.0,117980.0,0.41179726]
[1753292939022,0.41270496,117990.0,117980.0,0.59826931]
[1753292939253,0.43167532,117990.0,117980.0,0.04621559]
[1753292939482,0.43466532,117990.0,117980.0,0.41179726]
[1753292939954,0.40741355,117990.0,117980.0,0.58131751]
[1753292940188,0.39893848,117990.0,117980.0,0.41179726]
[1753292940427,0.39893848,117990.0,117980.0,0.59269345]
[1753292941419,0.001,117990.0,117980.0,1.11070635]
[1753292942106,0.26239816,118030.0,118020.0,0.23030885]
[1753292942323,0.32183306,118030.0,118020.0,0.61485614]
[1753292942543,0.16073634,118030.0,118020.0,0.61485629]
[1753292942770,0.18032859,118030.0,118020.0,0.62332892]
[1753292942972,0.7471294,118030.0,118020.0,0.62332892]
[1753292943240,0.7471294,118030.0,118020.0,0.61485629]
[1753292943482,0.73023438,118030.0,118020.0,0.58943753]
[1753292943703,0.80623941,118030.0,118020.0,0.41350167]
[1753292943924,0.32176211,118030.0,118020.0,0.41350167]
[1753292944143,0.32387211,118030.0,118020.0,0.41350167]
[1753292944361,0.32688211,118030.0,118020.0,0.41350167]
[1753292944578,0.32688211,118030.0,118020.0,0.59143761]
[1753292944820,0.32387211,118030.0,118020.0,0.5999106]
[1753292945007,0.32176211,118030.0,118020.0,0.59243761]
[1753292945374,0.31328976,118030.0,118020.0,0.60091067]
[1753292945574,0.31328976,118030.0,118020.0,0.41450167]
[1753292945792,0.36186315,118030.0,118020.0,0.41450167]
[1753292946137,0.36698315,118030.0,118020.0,0.41450167]
[1753292946561,0.31840976,118030.0,118020.0,0.59243753]
[1753292946768,0.31539976,118030.0,118020.0,0.59243753]
[1753292947006,0.31539976,118030.0,118020.0,0.41450167]
[1753292947219,0.31840976,118030.0,118020.0,0.41450167]
[1753292947649,0.31840976,118030.0,118020.0,0.59243753]
[1753292947858,0.31328976,118030.0,118020.0,0.60091052]
[1753292948499,0.31320976,118030.0,118020.0,0.60091052]
[1753292948832,0.31320976,118030.0,118020.0,0.41450167]
[1753292949797,0.00840132,118030.0,118020.0,0.59243753]
[1753292950038,0.00840132,118030.0,118020.0,0.41740167]
[1753292950039,0.33280186,118030.0,118020.0,0.41740167]
[1753292950281,0.33015423,118030.0,118020.0,0.41740167]
[1753292950748,0.33015423,118030.0,118020.0,0.41450167]
[1753292952122,0.38041406,118030.0,118020.0,0.41450167]
[1753292952364,0.38553406,118030.0,118020.0,0.41450167]
[1753292952590,0.38553406,118030.0,118020.0,0.41248167]
[1753292952814,0.33011423,118030.0,118020.0,0.59238761]
[1753292953037,0.33011423,118030.0,118020.0,0.58681447]
[1753292953242,0.33011423,118030.0,118020.0,0.6008606]
[1753292953489,0.32164203,118030.0,118020.0,0.41445167]
[1753292953742,0.38605064,118030.0,118020.0,0.41445167]
[1753292953975,0.38605064,118030.0,118020.0,0.59238761]
[1753292954211,0.38605064,118030.0,118020.0,0.6178063]
[1753292954442,0.38605064,118030.0,118020.0,0.59238761]
[1753292954677,0.38605064,118030.0,118020.0,0.6008606]
[1753292954890,0.38605064,118030.0,118020.0,0.60933352]
[1753292955105,0.38605064,118030.0,118020.0,0.61780637]
[1753292956037,0.33858644,118030.0,118020.0,0.62627907]
[1753292956282,0.34705886,118030.0,118020.0,0.62627907]
[1753292956495,0.3385868,118030.0,118020.0,0.61780637]
[1753292957236,0.33011453,118030.0,118020.0,0.61780637]
[1753292958414,0.33011453,118030.0,118020.0,0.60933352]
[1753292958761,0.41459183,118030.0,118020.0,0.60933352]
[1753292958971,0.41459183,118030.0,118020.0,0.61780637]
[1753292959378,0.15219323,118030.0,118020.0,0.62627864]
[1753292959576,0.15211323,118030.0,118020.0,0.62917864]
[1753292959914,0.15211316,118030.0,118020.0,0.62917864]
[1753292960332,0.16905735,118030.0,118020.0,0.26359697]
[1753292960715,0.34697821,118030.0,118020.0,0.60086038]
[1753292960917,0.262007,118030.0,118020.0,0.61780586]
[1753292961119,0.23659046,118030.0,118020.0,0.61780586]
[1753292961329,0.24506252,118030.0,118020.0,0.61780586]
[1753292961529,0.25353479,118030.0,118020.0,0.61780586]
[1753292961929,0.25353472,118030.0,118020.0,0.61780586]
[1753292962230,0.26200699,118030.0,118020.0,0.61780586]
[1753292962432,0.25365484,118030.0,118020.0,0.61780586]
[1753292962641,0.24518257,118030.0,118020.0,0.61780586]
[1753292962833,0.64518257,118030.0,118020.0,0.61780586]
[1753292963191,0.65365484,118030.0,118020.0,0.61780586]
[1753292963374,0.56070527,118030.0,118020.0,0.61780586]
[1753292963600,0.56917754,118030.0,118020.0,0.62070586]
[1753292963801,0.57764989,118030.0,118020.0,0.62070586]
[1753292964018,0.55223307,118030.0,118020.0,0.61780586]
[1753292964154,0.56070527,118030.0,118020.0,0.61780586]
[1753292964339,0.56070527,118030.0,118020.0,0.62070586]
[1753292964790,0.56070534,118030.0,118020.0,0.62070586]
[1753292965204,0.73862613,118030.0,118020.0,0.62070586]
[1753292965443,0.56917769,118030.0,118020.0,0.62070586]
[1753292965692,0.56070527,118030.0,118020.0,0.62070586]
[1753292966088,0.56933994,118030.0,118020.0,0.62070586]
[1753292966473,0.57781221,118030.0,118020.0,0.62070586]
[1753292966642,0.83173795,118030.0,118020.0,0.60933323]
[1753292966862,0.66228951,118030.0,118020.0,0.62627864]
[1753292967038,0.58628456,118030.0,118020.0,0.62627864]
[1753292967864,0.7387891,118030.0,118020.0,0.60086038]
[1753292968069,0.7387891,118030.0,118020.0,0.60933323]
[1753292968681,0.7387891,118030.0,118020.0,0.61780601]
[1753292969507,0.56934066,118030.0,118020.0,0.61780601]
[1753292969630,0.56086831,118030.0,118020.0,0.62627864]
[1753292970275,0.55239583,118030.0,118020.0,0.62627864]
[1753292970477,0.55239583,118030.0,118020.0,0.62917864]
[1753292971157,0.5608676,118030.0,118020.0,0.62917864]
[1753292971408,0.56137286,118030.0,118020.0,0.62917864]
[1753292971628,0.56984463,118030.0,118020.0,0.62917864]
[1753292971845,0.00868384,118030.0,118020.0,0.62917864]
[1753292972076,4.917e-05,118030.0,118020.0,0.62917864]
[1753292972710,4.917e-05,118030.0,118020.0,0.76425864]
[1753292974273,4.917e-05,118030.0,118020.0,0.76225864]
[1753292974274,0.00852094,118030.0,118020.0,0.76225864]
[1753292974703,0.00852094,118030.0,118020.0,0.76525864]
[1753292974944,0.01699278,118030.0,118020.0,0.76525864]
[1753292975161,0.20353494,118030.0,118020.0,0.74731323]
[1753292975374,0.0340865,118030.0,118020.0,0.75578586]
[1753292975581,0.04255877,118030.0,118020.0,0.75678586]
[1753292975788,0.0340865,118030.0,118020.0,0.75678586]
[1753292976004,0.0510309,118030.0,118020.0,0.75678586]
[1753292976221,0.04255863,118030.0,118020.0,0.75678586]
[1753292976431,0.0510309,118030.0,118020.0,0.75388586]
[1753292976881,0.04255863,118030.0,118020.0,0.75388586]
[1753292977694,0.02561444,118030.0,118020.0,0.75388586]
[1753292977942,0.03408643,118030.0,118020.0,0.75678586]
[1753292978174,4.917e-05,118030.0,118020.0,0.75678586]
[1753292978591,0.016993,118030.0,118020.0,0.75678586]
[1753292978883,0.00852101,118030.0,118020.0,0.75678586]
[1753292979104,0.01699292,118030.0,118020.0,0.75678586]
[1753292979315,0.02546498,118030.0,118020.0,0.75678586]
[1753292979523,4.917e-05,118030.0,118020.0,0.75678586]
[1753292979780,0.01041823,118030.0,118020.0,0.2173628]
[1753292980013,0.43939495,118030.0,118020.0,0.1734628]
[1753292980246,0.27595387,118030.0,118020.0,0.1734628]
[1753292980487,0.27595379,118030.0,118020.0,0.19040886]
[1753292980706,0.26748152,118030.0,118020.0,0.55599053]
[1753292980930,0.35195867,118030.0,118020.0,0.19040886]
[1753292981155,0.35195867,118030.0,118020.0,0.55599053]
[1753292981394,0.25900924,118030.0,118020.0,0.59473594]
[1753292981659,0.26748137,118030.0,118020.0,0.59849053]
[1753292981897,0.27603889,118030.0,118020.0,0.20373594]
[1753292982112,0.28451116,118030.0,118020.0,0.56446366]
[1753292982338,0.28451116,118030.0,118020.0,0.57293658]
[1753292982339,0.36051619,118030.0,118020.0,0.57293658]
[1753292982569,0.35204406,118030.0,118020.0,0.58140943]
[1753292982793,0.36898832,118030.0,118020.0,0.56446344]
[1753292983015,0.36051612,118030.0,118020.0,0.56446344]
[1753292983241,0.36051612,118030.0,118020.0,0.57293629]
[1753292983484,0.35204406,118030.0,118020.0,0.58140871]
[1753292983705,0.25909485,118030.0,118020.0,0.62430835]
[1753292984172,0.25909485,118030.0,118020.0,0.60736302]
[1753292984398,0.25909485,118030.0,118020.0,0.62430835]
[1753292984623,0.26756691,118030.0,118020.0,0.59889053]
[1753292984866,0.27603918,118030.0,118020.0,0.53904447]
[1753292985080,0.36051648,118030.0,118020.0,0.1734628]
[1753292985274,0.53843727,118030.0,118020.0,0.1734628]
[1753292985750,0.23398883,118030.0,118020.0,0.18193594]
[1753292985994,0.36894883,118030.0,118020.0,0.190409]
[1753292986718,0.36894883,118030.0,118020.0,0.18193594]
[1753292986932,0.36894876,118030.0,118020.0,0.19040893]
[1753292987168,0.35200421,118030.0,118020.0,0.20735463]
[1753292987383,0.35200421,118030.0,118020.0,0.2073547]
[1753292987817,0.36047641,118030.0,118020.0,0.19888185]
[1753292988246,0.35200414,118030.0,118020.0,0.20735455]
[1753292988484,0.27599904,118030.0,118020.0,0.18193594]
[1753292988707,0.27599904,118030.0,118020.0,0.54751761]
[1753292988934,0.28447146,118030.0,118020.0,0.54751761]
[1753292989181,0.4539199,118030.0,118020.0,0.53904447]
[1753292989417,1.07893504,118030.0,118020.0,0.004]
[1753292990103,0.71335337,118030.0,118020.0,0.004]
[1753292991031,0.04286972,118010.0,118000.0,0.60177217]
[1753292991255,0.36050881,118010.0,118000.0,0.59329832]
[1753292991515,0.36087073,118010.0,118000.0,0.5932984]
[1753292991736,0.35239738,118010.0,118000.0,0.59329847]
[1753292992201,0.38116823,118010.0,118000.0,0.17046787]
[1753292992450,0.89948012,118010.0,118000.0,0.001]
[1753292992886,0.53389845,118010.0,118000.0,0.003]
[1753292993546,0.48818025,118010.0,118000.0,0.003]
[1753292993986,0.48818025,118010.0,118000.0,0.002]
[1753292994209,0.31002025,118010.0,118000.0,0.002]
[1753292994456,0.59541511,118000.0,117990.0,0.59323437]
[1753292994662,0.69044655,118000.0,117990.0,0.59323437]
[1753292994869,0.77793385,118000.0,117990.0,0.60368944]
[1753292995097,0.77793385,118000.0,117990.0,0.61216444]
[1753292995560,0.60543212,118000.0,117990.0,0.61216444]
[1753292995777,0.74678619,118000.0,117990.0,0.62063923]
[1753292995996,0.75526062,118000.0,117990.0,0.62063923]
[1753292996233,0.74678619,118000.0,117990.0,0.62063923]
[1753292996452,0.74678619,118000.0,117990.0,0.62163923]
[1753292996678,0.75526062,118000.0,117990.0,0.62163923]
[1753292996911,0.93322664,118000.0,117990.0,0.62163923]
[1753292997133,0.53322664,118000.0,117990.0,0.62163923]
[1753292997808,0.36373512,118000.0,117990.0,0.62163923]
[1753292998264,0.27925782,118000.0,117990.0,0.62163923]
[1753292999143,0.01744902,118000.0,117990.0,0.62163923]
[1753292999359,0.18642422,118010.0,118000.0,0.2270403]
[1753292999570,0.36425415,118010.0,118000.0,0.60957032]
[1753292999778,0.36425415,118010.0,118000.0,0.61155032]
[1753292999997,0.19477685,118010.0,118000.0,0.62002439]
[1753293000226,0.16935579,118010.0,118000.0,0.62002439]
[1753293000694,0.001,118010.0,118000.0,0.98850606]
[1753293000918,0.001,118010.0,118000.0,1.0561336]
[1753293001146,0.001,118010.0,118000.0,1.1406109]
[1753293001593,0.19490358,118030.0,118020.0,0.23608134]
[1753293001806,0.04249456,118030.0,118020.0,0.60364301]
[1753293002024,0.05994358,118030.0,118020.0,0.60364301]
[1753293002466,0.02605571,118030.0,118020.0,0.60654301]
[1753293002899,0.03452748,118030.0,118020.0,0.60754301]
[1753293003130,0.02605571,118030.0,118020.0,0.60754301]
[1753293003741,0.03452755,118030.0,118020.0,0.60754301]
[1753293003995,0.03452748,118030.0,118020.0,0.60754301]
[1753293004706,0.02605571,118030.0,118020.0,0.60754301]
[1753293004930,0.02605571,118030.0,118020.0,0.60464301]
[1753293005153,4.917e-05,118030.0,118020.0,0.60464301]
[1753293005581,4.917e-05,118030.0,118020.0,0.60754301]